[Event "Titled Tuesday Blitz April 25 Late 2023"]
[White "Deac, Bogdan-Daniel"]
[Black "Gritsenko, Nikolai"]
[WhiteFideId "1226380"]
[BlackFideId "14112493"]
[WhiteElo "2649"]
[BlackElo "2389"]
[Result "1-0"]
[Round "05"]
[TimeControl "180+2"]
[Date "2023.04.25"]
[WhiteClock "0:00:07"]
[BlackClock "0:00:01"]

1. b3 {[%clk 0:03:00]}  d5 {[%clk 0:02:58]} 2. Bb2 {[%clk 0:03:00]}  Bf5 {[%clk 0:02:58]} 3. e3 {[%clk 0:03:00]}  e6 {[%clk 0:02:58]} 4. c4 {[%clk 0:03:00]}  c6 {[%clk 0:02:58]} 5. Nf3 {[%clk 0:03:00]}  h6 {[%clk 0:02:58]} 6. g3 {[%clk 0:02:52]}  Nf6 {[%clk 0:02:57]} 7. Bg2 {[%clk 0:02:51]}  Nbd7 {[%clk 0:02:54]} 8. d4 {[%clk 0:02:50]}  Bb4+ {[%clk 0:02:25]} 9. Nbd2 {[%clk 0:02:49]}  O-O {[%clk 0:02:22]} 10. a3 {[%clk 0:02:46]}  Bd6 {[%clk 0:02:15]} 11. O-O {[%clk 0:02:45]}  Qe7 {[%clk 0:02:12]} 12. Qe2 {[%clk 0:02:39]}  a6 {[%clk 0:02:07]} 13. b4 {[%clk 0:02:36]}  b5 {[%clk 0:01:53]} 14. c5 {[%clk 0:02:35]}  Bc7 {[%clk 0:01:51]} 15. a4 {[%clk 0:02:33]}  e5 {[%clk 0:01:42]} 16. dxe5 {[%clk 0:02:24]}  Nxe5 {[%clk 0:01:40]} 17. Nxe5 {[%clk 0:02:23]}  Bxe5 {[%clk 0:01:40]} 18. Bxe5 {[%clk 0:02:24]}  Qxe5 {[%clk 0:01:38]} 19. Nf3 {[%clk 0:02:24]}  Qc3 {[%clk 0:01:18]} 20. Qe1 {[%clk 0:02:04]}  Qb2 {[%clk 0:01:12]} 21. Nd4 {[%clk 0:00:57]}  Bd3 {[%clk 0:01:11]} 22. Nxc6 {[%clk 0:00:57]}  Bxf1 {[%clk 0:01:10]} 23. Qxf1 {[%clk 0:00:58]}  Rfe8 {[%clk 0:01:01]} 24. Qc1 {[%clk 0:00:42]}  Qxc1+ {[%clk 0:00:52]} 25. Rxc1 {[%clk 0:00:42]}  bxa4 {[%clk 0:00:51]} 26. Ra1 {[%clk 0:00:42]}  Rac8 {[%clk 0:00:50]} 27. Na5 {[%clk 0:00:41]}  Ne4 {[%clk 0:00:25]} 28. Bf1 {[%clk 0:00:29]}  Rb8 {[%clk 0:00:21]} 29. Rxa4 {[%clk 0:00:19]}  d4 {[%clk 0:00:18]} 30. exd4 {[%clk 0:00:16]}  Nc3 {[%clk 0:00:18]} 31. Ra3 {[%clk 0:00:16]}  Nd5 {[%clk 0:00:18]} 32. Nc6 {[%clk 0:00:16]}  Rbc8 {[%clk 0:00:15]} 33. Rxa6 {[%clk 0:00:16]}  Re1 {[%clk 0:00:15]} 34. b5 {[%clk 0:00:15]}  Rb1 {[%clk 0:00:13]} 35. Kg2 {[%clk 0:00:14]}  Re8 {[%clk 0:00:13]} 36. Bc4 {[%clk 0:00:12]}  Nc3 {[%clk 0:00:12]} 37. Ra7 {[%clk 0:00:11]}  Ree1 {[%clk 0:00:11]} 38. Rxf7 {[%clk 0:00:07]}  Rg1+ {[%clk 0:00:01]} 39. Kh3 {[%clk 0:00:07]}  Kh8 {[%clk 0:00:01]} 40. Ne7 {[%clk 0:00:07]} 1-0


[Site "https://www.chess.com"]

[Event "Titled Tuesday Blitz April 25 Late 2023"]
[White "Kollars, Dmitrij"]
[Black "Sabuk, Piotr"]
[WhiteFideId "12909572"]
[BlackFideId "1137565"]
[WhiteElo "2584"]
[BlackElo "2298"]
[Result "1-0"]
[Round "05"]
[TimeControl "180+2"]
[Date "2023.04.25"]
[WhiteClock "0:00:10"]
[BlackClock "0:00:05"]

1. e4 {[%clk 0:03:00]}  e5 {[%clk 0:02:59]} 2. Nf3 {[%clk 0:03:00]}  Nc6 {[%clk 0:02:59]} 3. Bb5 {[%clk 0:02:59]}  a6 {[%clk 0:02:59]} 4. Ba4 {[%clk 0:03:00]}  Nf6 {[%clk 0:02:59]} 5. O-O {[%clk 0:03:00]}  Be7 {[%clk 0:03:00]} 6. d3 {[%clk 0:03:00]}  b5 {[%clk 0:02:59]} 7. Bb3 {[%clk 0:03:01]}  d6 {[%clk 0:02:59]} 8. a3 {[%clk 0:02:56]}  O-O {[%clk 0:02:54]} 9. Nc3 {[%clk 0:02:55]}  Nb8 {[%clk 0:02:54]} 10. Ne2 {[%clk 0:02:54]}  Nbd7 {[%clk 0:02:52]} 11. Ng3 {[%clk 0:02:55]}  Re8 {[%clk 0:02:50]} 12. Bxf7+ {[%clk 0:02:50]}  Kh8 {[%clk 0:02:26]} 13. Bxe8 {[%clk 0:02:51]}  Qxe8 {[%clk 0:02:26]} 14. a4 {[%clk 0:02:50]}  b4 {[%clk 0:02:25]} 15. c3 {[%clk 0:02:44]}  a5 {[%clk 0:02:21]} 16. d4 {[%clk 0:02:41]}  Bb7 {[%clk 0:02:17]} 17. Re1 {[%clk 0:02:40]}  Qg6 {[%clk 0:02:16]} 18. Nh4 {[%clk 0:02:39]}  Qf7 {[%clk 0:02:14]} 19. Nhf5 {[%clk 0:02:38]}  Bf8 {[%clk 0:02:13]} 20. cxb4 {[%clk 0:02:33]}  axb4 {[%clk 0:02:10]} 21. d5 {[%clk 0:02:33]}  Nc5 {[%clk 0:02:05]} 22. f3 {[%clk 0:02:16]}  g6 {[%clk 0:02:01]} 23. Ne3 {[%clk 0:02:16]}  c6 {[%clk 0:01:55]} 24. dxc6 {[%clk 0:02:02]}  Bxc6 {[%clk 0:01:56]} 25. Qc2 {[%clk 0:01:20]}  Bxa4 {[%clk 0:01:46]} 26. Qc4 {[%clk 0:01:20]}  Qxc4 {[%clk 0:01:37]} 27. Nxc4 {[%clk 0:01:21]}  Rb8 {[%clk 0:01:34]} 28. Be3 {[%clk 0:01:18]}  Nd3 {[%clk 0:01:31]} 29. Re2 {[%clk 0:01:02]}  Bb5 {[%clk 0:01:27]} 30. Nb6 {[%clk 0:00:52]}  Nc5 {[%clk 0:01:17]} 31. Ra8 {[%clk 0:00:19]}  Rxa8 {[%clk 0:01:11]} 32. Nxa8 {[%clk 0:00:20]}  Bxe2 {[%clk 0:01:06]} 33. Nxe2 {[%clk 0:00:21]}  d5 {[%clk 0:01:01]} 34. Bg5 {[%clk 0:00:15]}  Ncd7 {[%clk 0:00:54]} 35. Bxf6+ {[%clk 0:00:10]}  Nxf6 {[%clk 0:00:54]} 36. exd5 {[%clk 0:00:11]}  Nxd5 {[%clk 0:00:55]} 37. Kf2 {[%clk 0:00:11]}  Bc5+ {[%clk 0:00:53]} 38. Ke1 {[%clk 0:00:11]}  Kg7 {[%clk 0:00:52]} 39. Kd2 {[%clk 0:00:11]}  Kf6 {[%clk 0:00:48]} 40. Kd3 {[%clk 0:00:12]}  Ke6 {[%clk 0:00:45]} 41. Kc4 {[%clk 0:00:10]}  Bf2 {[%clk 0:00:45]} 42. Kb5 {[%clk 0:00:10]}  Kd6 {[%clk 0:00:40]} 43. Ng3 {[%clk 0:00:08]}  Bxg3 {[%clk 0:00:36]} 44. hxg3 {[%clk 0:00:09]}  h5 {[%clk 0:00:36]} 45. Nb6 {[%clk 0:00:08]}  Ne7 {[%clk 0:00:14]} 46. Kxb4 {[%clk 0:00:08]}  Nf5 {[%clk 0:00:13]} 47. Nc4+ {[%clk 0:00:06]}  Kd5 {[%clk 0:00:10]} 48. g4 {[%clk 0:00:04]}  hxg4 {[%clk 0:00:10]} 49. fxg4 {[%clk 0:00:04]}  Nh6 {[%clk 0:00:11]} 50. Ne3+ {[%clk 0:00:03]}  Ke4 {[%clk 0:00:10]} 51. g5 {[%clk 0:00:02]}  Nf7 {[%clk 0:00:09]} 52. Nc4 {[%clk 0:00:03]}  Nxg5 {[%clk 0:00:09]} 53. Kc5 {[%clk 0:00:04]}  Ne6+ {[%clk 0:00:09]} 54. Kd6 {[%clk 0:00:04]}  Nf4 {[%clk 0:00:07]} 55. b4 {[%clk 0:00:03]}  Kd4 {[%clk 0:00:03]} 56. Nxe5 {[%clk 0:00:03]}  Nd5 {[%clk 0:00:01]} 57. b5 {[%clk 0:00:02]}  Nb6 {[%clk 0:00:02]} 58. Kc6 {[%clk 0:00:02]}  Na4 {[%clk 0:00:01]} 59. Nxg6 {[%clk 0:00:03]}  Ke4 {[%clk 0:00:01]} 60. b6 {[%clk 0:00:02]}  Nxb6 {[%clk 0:00:01]} 61. Kxb6 {[%clk 0:00:03]}  Kf5 {[%clk 0:00:01]} 62. Nh4+ {[%clk 0:00:03]}  Kg4 {[%clk 0:00:02]} 63. Nf3 {[%clk 0:00:04]}  Kg3 {[%clk 0:00:02]} 64. Ne1 {[%clk 0:00:05]}  Kf2 {[%clk 0:00:03]} 65. Kc5 {[%clk 0:00:06]}  Ke3 {[%clk 0:00:02]} 66. Kd5 {[%clk 0:00:06]}  Kf4 {[%clk 0:00:02]} 67. Kd4 {[%clk 0:00:06]}  Kg3 {[%clk 0:00:03]} 68. Ke3 {[%clk 0:00:07]}  Kg4 {[%clk 0:00:03]} 69. Kf2 {[%clk 0:00:07]}  Kf4 {[%clk 0:00:04]} 70. g3+ {[%clk 0:00:08]}  Kg4 {[%clk 0:00:05]} 71. Kg2 {[%clk 0:00:09]}  Kg5 {[%clk 0:00:05]} 72. Kf3 {[%clk 0:00:10]} 1-0


[Site "https://www.chess.com"]

[Event "Titled Tuesday Blitz April 25 Late 2023"]
[White "Nasuta, Grzegorz"]
[Black "Svane, Rasmus"]
[WhiteFideId "1141686"]
[BlackFideId "4657101"]
[WhiteElo "2449"]
[BlackElo "2597"]
[Result "0-1"]
[Round "05"]
[TimeControl "180+2"]
[Date "2023.04.25"]
[WhiteClock "0:00:05"]
[BlackClock "0:00:07"]

1. e4 {[%clk 0:02:57]}  c6 {[%clk 0:03:00]} 2. d4 {[%clk 0:02:51]}  d5 {[%clk 0:03:00]} 3. e5 {[%clk 0:02:51]}  Bf5 {[%clk 0:03:01]} 4. Nf3 {[%clk 0:02:51]}  e6 {[%clk 0:03:01]} 5. Be2 {[%clk 0:02:52]}  Ne7 {[%clk 0:03:01]} 6. O-O {[%clk 0:02:51]}  Ng6 {[%clk 0:03:01]} 7. a4 {[%clk 0:02:50]}  Nd7 {[%clk 0:03:01]} 8. a5 {[%clk 0:02:51]}  f6 {[%clk 0:02:59]} 9. Ne1 {[%clk 0:02:50]}  h5 {[%clk 0:02:58]} 10. f4 {[%clk 0:02:49]}  h4 {[%clk 0:02:40]} 11. Be3 {[%clk 0:02:40]}  a6 {[%clk 0:02:33]} 12. Nd2 {[%clk 0:02:32]}  c5 {[%clk 0:02:31]} 13. c3 {[%clk 0:02:32]}  Be7 {[%clk 0:02:27]} 14. Bd3 {[%clk 0:02:05]}  Bxd3 {[%clk 0:02:25]} 15. Nxd3 {[%clk 0:02:06]}  c4 {[%clk 0:02:23]} 16. exf6 {[%clk 0:02:05]}  gxf6 {[%clk 0:01:54]} 17. f5 {[%clk 0:01:52]}  exf5 {[%clk 0:01:55]} 18. Nf4 {[%clk 0:01:48]}  Nxf4 {[%clk 0:01:55]} 19. Bxf4 {[%clk 0:01:49]}  Nf8 {[%clk 0:01:52]} 20. Qc2 {[%clk 0:01:06]}  Qd7 {[%clk 0:01:52]} 21. h3 {[%clk 0:00:56]}  O-O-O {[%clk 0:01:48]} 22. Bh2 {[%clk 0:00:52]}  Rh5 {[%clk 0:01:48]} 23. b3 {[%clk 0:00:49]}  cxb3 {[%clk 0:01:43]} 24. Nxb3 {[%clk 0:00:50]}  Ng6 {[%clk 0:01:13]} 25. c4 {[%clk 0:00:33]}  Rg8 {[%clk 0:01:13]} 26. cxd5+ {[%clk 0:00:32]}  Kd8 {[%clk 0:01:14]} 27. Nc5 {[%clk 0:00:32]}  Qxd5 {[%clk 0:01:12]} 28. Rae1 {[%clk 0:00:27]}  Nf8 {[%clk 0:01:08]} 29. Rf2 {[%clk 0:00:22]}  Rhg5 {[%clk 0:01:05]} 30. Rfe2 {[%clk 0:00:13]}  Qxd4+ {[%clk 0:01:02]} 31. Kh1 {[%clk 0:00:11]}  Qxc5 {[%clk 0:00:54]} 32. Qd1+ {[%clk 0:00:11]}  Nd7 {[%clk 0:00:41]} 33. Rxe7 {[%clk 0:00:11]}  Qxe7 {[%clk 0:00:38]} 34. Rxe7 {[%clk 0:00:12]}  Kxe7 {[%clk 0:00:39]} 35. Bc7 {[%clk 0:00:08]}  R8g7 {[%clk 0:00:31]} 36. Qd6+ {[%clk 0:00:08]}  Ke8 {[%clk 0:00:32]} 37. Qe6+ {[%clk 0:00:08]}  Re7 {[%clk 0:00:32]} 38. Qd5 {[%clk 0:00:05]}  Re2 {[%clk 0:00:19]} 39. Qxb7 {[%clk 0:00:02]}  Nf8 {[%clk 0:00:09]} 40. Qxa6 {[%clk 0:00:02]}  Rgxg2 {[%clk 0:00:09]} 41. Qa8+ {[%clk 0:00:02]}  Kd7 {[%clk 0:00:07]} 42. Qxg2 {[%clk 0:00:03]}  Rxg2 {[%clk 0:00:07]} 43. Kxg2 {[%clk 0:00:04]}  Kxc7 {[%clk 0:00:07]} 44. Kf3 {[%clk 0:00:05]}  Ne6 {[%clk 0:00:07]} 0-1


[Site "https://www.chess.com"]

[Event "Titled Tuesday Blitz April 25 Late 2023"]
[White "Svane, Frederik"]
[Black "Brodowski, Piotr"]
[WhiteFideId "12923044"]
[BlackFideId "1124480"]
[WhiteElo "2502"]
[BlackElo "2351"]
[Result "1-0"]
[Round "05"]
[TimeControl "180+2"]
[Date "2023.04.25"]
[WhiteClock "0:01:19"]
[BlackClock "0:00:02"]

1. e4 {[%clk 0:03:00]}  d6 {[%clk 0:02:59]} 2. d4 {[%clk 0:03:01]}  g6 {[%clk 0:03:00]} 3. Nf3 {[%clk 0:03:01]}  Bg7 {[%clk 0:03:00]} 4. Bd3 {[%clk 0:03:01]}  a6 {[%clk 0:03:01]} 5. c3 {[%clk 0:03:01]}  Nc6 {[%clk 0:02:54]} 6. O-O {[%clk 0:02:57]}  Nf6 {[%clk 0:02:41]} 7. Nbd2 {[%clk 0:02:50]}  O-O {[%clk 0:02:41]} 8. h3 {[%clk 0:02:50]}  e5 {[%clk 0:02:32]} 9. Re1 {[%clk 0:02:50]}  Qe7 {[%clk 0:02:30]} 10. Nf1 {[%clk 0:02:50]}  Nd7 {[%clk 0:02:24]} 11. Ne3 {[%clk 0:02:49]}  exd4 {[%clk 0:02:18]} 12. Nd5 {[%clk 0:02:50]}  Qd8 {[%clk 0:02:17]} 13. Bg5 {[%clk 0:02:50]}  f6 {[%clk 0:02:16]} 14. Bh4 {[%clk 0:02:40]}  dxc3 {[%clk 0:02:16]} 15. Qb3 {[%clk 0:02:37]}  Nc5 {[%clk 0:01:47]} 16. Qxc3 {[%clk 0:02:34]}  Nxd3 {[%clk 0:01:37]} 17. Qxd3 {[%clk 0:02:35]}  Be6 {[%clk 0:01:36]} 18. Rac1 {[%clk 0:02:33]}  g5 {[%clk 0:01:28]} 19. Bg3 {[%clk 0:02:31]}  h6 {[%clk 0:01:29]} 20. Ne3 {[%clk 0:02:17]}  Ne5 {[%clk 0:01:25]} 21. Qe2 {[%clk 0:02:15]}  Nxf3+ {[%clk 0:01:04]} 22. Qxf3 {[%clk 0:02:16]}  Qd7 {[%clk 0:01:05]} 23. b3 {[%clk 0:01:56]}  Rfe8 {[%clk 0:01:03]} 24. Red1 {[%clk 0:01:52]}  Rac8 {[%clk 0:00:55]} 25. h4 {[%clk 0:01:38]}  Kh7 {[%clk 0:00:39]} 26. hxg5 {[%clk 0:01:34]}  fxg5 {[%clk 0:00:34]} 27. e5 {[%clk 0:01:33]}  Qf7 {[%clk 0:00:25]} 28. Qxb7 {[%clk 0:01:30]}  dxe5 {[%clk 0:00:21]} 29. Qxa6 {[%clk 0:01:29]}  Kg8 {[%clk 0:00:20]} 30. Qb5 {[%clk 0:01:28]}  c6 {[%clk 0:00:12]} 31. Qc5 {[%clk 0:01:28]}  Bd7 {[%clk 0:00:09]} 32. Rd6 {[%clk 0:01:25]}  Bf8 {[%clk 0:00:08]} 33. Rcd1 {[%clk 0:01:25]}  Bxd6 {[%clk 0:00:08]} 34. Qxd6 {[%clk 0:01:23]}  Rcd8 {[%clk 0:00:05]} 35. Qxh6 {[%clk 0:01:22]}  Bf5 {[%clk 0:00:05]} 36. Rxd8 {[%clk 0:01:19]}  Rxd8 {[%clk 0:00:02]} 37. Qxg5+ {[%clk 0:01:19]} 1-0


[Site "https://www.chess.com"]

[Event "Titled Tuesday Blitz April 25 Late 2023"]
[White "Lewicki, Miroslaw"]
[Black "Grigoriants, Sergey"]
[WhiteFideId "1113380"]
[BlackFideId "4130804"]
[WhiteElo "2212"]
[BlackElo "2502"]
[Result "0-1"]
[Round "05"]
[TimeControl "180+2"]
[Date "2023.04.25"]
[WhiteClock "0:00:10"]
[BlackClock "0:01:35"]

1. g3 {[%clk 0:02:57]}  d5 {[%clk 0:02:58]} 2. Bg2 {[%clk 0:02:58]}  e5 {[%clk 0:02:56]} 3. Nf3 {[%clk 0:02:58]}  f6 {[%clk 0:02:53]} 4. O-O {[%clk 0:02:55]}  c5 {[%clk 0:02:51]} 5. c3 {[%clk 0:02:54]}  Nc6 {[%clk 0:02:50]} 6. d4 {[%clk 0:02:53]}  cxd4 {[%clk 0:02:49]} 7. cxd4 {[%clk 0:02:53]}  e4 {[%clk 0:02:49]} 8. Ne1 {[%clk 0:02:53]}  f5 {[%clk 0:02:50]} 9. Nc3 {[%clk 0:02:53]}  Nf6 {[%clk 0:02:51]} 10. Bg5 {[%clk 0:02:50]}  Be6 {[%clk 0:02:50]} 11. Nc2 {[%clk 0:02:46]}  Be7 {[%clk 0:02:49]} 12. Ne3 {[%clk 0:02:37]}  O-O {[%clk 0:02:42]} 13. Qd2 {[%clk 0:02:37]}  h6 {[%clk 0:02:38]} 14. Bf4 {[%clk 0:02:33]}  Qb6 {[%clk 0:02:32]} 15. Rfd1 {[%clk 0:02:28]}  Rad8 {[%clk 0:02:28]} 16. Rac1 {[%clk 0:02:10]}  Qa6 {[%clk 0:02:15]} 17. a3 {[%clk 0:01:56]}  Rc8 {[%clk 0:02:10]} 18. Be5 {[%clk 0:01:53]}  Rfd8 {[%clk 0:02:08]} 19. Nc2 {[%clk 0:01:42]}  Na5 {[%clk 0:02:03]} 20. Nb4 {[%clk 0:01:05]}  Bxb4 {[%clk 0:01:57]} 21. Bxf6 {[%clk 0:01:06]}  Nb3 {[%clk 0:01:51]} 22. Qc2 {[%clk 0:01:00]}  Nxc1 {[%clk 0:01:46]} 23. Bxd8 {[%clk 0:00:42]}  Bxc3 {[%clk 0:01:43]} 24. Qxc1 {[%clk 0:00:29]}  Ba5 {[%clk 0:01:35]} 25. Qxh6 {[%clk 0:00:10]} 0-1


[Site "https://www.chess.com"]

[Event "Titled Tuesday Blitz April 25 Late 2023"]
[White "Fressinet, Laurent"]
[Black "Munoz, Francisco Javier"]
[WhiteFideId "608742"]
[BlackFideId "128368"]
[WhiteElo "2633"]
[BlackElo "2383"]
[Result "1/2-1/2"]
[Round "05"]
[TimeControl "180+2"]
[Date "2023.04.25"]
[WhiteClock "0:00:13"]
[BlackClock "0:00:08"]

1. d4 {[%clk 0:03:00]}  d5 {[%clk 0:02:59]} 2. Nf3 {[%clk 0:03:00]}  e6 {[%clk 0:02:58]} 3. Bg5 {[%clk 0:02:59]}  Nf6 {[%clk 0:02:59]} 4. e3 {[%clk 0:02:59]}  Nbd7 {[%clk 0:02:59]} 5. Nbd2 {[%clk 0:02:57]}  h6 {[%clk 0:02:59]} 6. Bh4 {[%clk 0:02:57]}  Bd6 {[%clk 0:02:59]} 7. Bd3 {[%clk 0:02:54]}  b6 {[%clk 0:02:54]} 8. Qe2 {[%clk 0:02:43]}  Bb7 {[%clk 0:02:53]} 9. Ba6 {[%clk 0:02:40]}  Bxa6 {[%clk 0:02:51]} 10. Qxa6 {[%clk 0:02:41]}  c5 {[%clk 0:02:49]} 11. c3 {[%clk 0:02:38]}  O-O {[%clk 0:02:32]} 12. O-O {[%clk 0:02:36]}  Qc7 {[%clk 0:02:19]} 13. Bxf6 {[%clk 0:02:33]}  Nxf6 {[%clk 0:02:18]} 14. a4 {[%clk 0:02:33]}  c4 {[%clk 0:02:15]} 15. Rfc1 {[%clk 0:02:27]}  Rfc8 {[%clk 0:01:59]} 16. b3 {[%clk 0:02:08]}  cxb3 {[%clk 0:01:53]} 17. Nxb3 {[%clk 0:02:08]}  Ne4 {[%clk 0:01:44]} 18. g3 {[%clk 0:01:35]}  Qc4 {[%clk 0:01:27]} 19. Qxc4 {[%clk 0:01:30]}  Rxc4 {[%clk 0:01:23]} 20. Nfd2 {[%clk 0:01:27]}  Rxc3 {[%clk 0:01:07]} 21. Nxe4 {[%clk 0:01:27]}  Rxc1+ {[%clk 0:01:07]} 22. Rxc1 {[%clk 0:01:28]}  dxe4 {[%clk 0:01:07]} 23. Nd2 {[%clk 0:01:28]}  f5 {[%clk 0:01:06]} 24. Rc6 {[%clk 0:01:27]}  Rd8 {[%clk 0:01:05]} 25. Nc4 {[%clk 0:01:26]}  Bb8 {[%clk 0:01:05]} 26. Rxe6 {[%clk 0:01:13]}  Rc8 {[%clk 0:01:05]} 27. Ne5 {[%clk 0:01:06]}  Bxe5 {[%clk 0:00:47]} 28. Rxe5 {[%clk 0:01:07]}  Rc1+ {[%clk 0:00:45]} 29. Kg2 {[%clk 0:01:07]}  Ra1 {[%clk 0:00:45]} 30. d5 {[%clk 0:00:58]}  g6 {[%clk 0:00:25]} 31. Re7 {[%clk 0:00:38]}  Rd1 {[%clk 0:00:25]} 32. Rxa7 {[%clk 0:00:35]}  Rxd5 {[%clk 0:00:25]} 33. Ra6 {[%clk 0:00:35]}  Ra5 {[%clk 0:00:23]} 34. Rxb6 {[%clk 0:00:35]}  Kf7 {[%clk 0:00:20]} 35. Rb4 {[%clk 0:00:34]}  Kf6 {[%clk 0:00:19]} 36. Kf1 {[%clk 0:00:30]}  Rc5 {[%clk 0:00:16]} 37. h4 {[%clk 0:00:29]}  Rc2 {[%clk 0:00:15]} 38. Rb6+ {[%clk 0:00:27]}  Kf7 {[%clk 0:00:15]} 39. h5 {[%clk 0:00:27]}  gxh5 {[%clk 0:00:13]} 40. Rxh6 {[%clk 0:00:28]}  Ra2 {[%clk 0:00:13]} 41. Ra6 {[%clk 0:00:25]}  Kg7 {[%clk 0:00:11]} 42. Kg2 {[%clk 0:00:25]}  Kf7 {[%clk 0:00:10]} 43. a5 {[%clk 0:00:25]}  Kg7 {[%clk 0:00:10]} 44. Ra8 {[%clk 0:00:23]}  Kg6 {[%clk 0:00:10]} 45. a6 {[%clk 0:00:22]}  Kg7 {[%clk 0:00:10]} 46. a7 {[%clk 0:00:20]}  Kh7 {[%clk 0:00:07]} 47. Kh3 {[%clk 0:00:20]}  Kg7 {[%clk 0:00:07]} 48. Kh4 {[%clk 0:00:20]}  Kh7 {[%clk 0:00:07]} 49. Kxh5 {[%clk 0:00:20]}  Ra5 {[%clk 0:00:07]} 50. Kg5 {[%clk 0:00:20]}  Kg7 {[%clk 0:00:07]} 51. Re8 {[%clk 0:00:20]}  Rxa7 {[%clk 0:00:05]} 52. Re5 {[%clk 0:00:18]}  Ra2 {[%clk 0:00:05]} 53. Rxf5 {[%clk 0:00:18]}  Ra4 {[%clk 0:00:04]} 54. Kf4 {[%clk 0:00:18]}  Kg6 {[%clk 0:00:04]} 55. g4 {[%clk 0:00:18]}  Rb4 {[%clk 0:00:02]} 56. Rg5+ {[%clk 0:00:15]}  Kf6 {[%clk 0:00:02]} 57. Rf5+ {[%clk 0:00:16]}  Kg6 {[%clk 0:00:02]} 58. Re5 {[%clk 0:00:17]}  Rb2 {[%clk 0:00:02]} 59. Kxe4 {[%clk 0:00:17]}  Rxf2 {[%clk 0:00:02]} 60. Rf5 {[%clk 0:00:17]}  Rd2 {[%clk 0:00:02]} 61. Rf4 {[%clk 0:00:16]}  Rd1 {[%clk 0:00:02]} 62. Ke5 {[%clk 0:00:16]}  Re1 {[%clk 0:00:03]} 63. e4 {[%clk 0:00:16]}  Kg5 {[%clk 0:00:03]} 64. Rf8 {[%clk 0:00:14]}  Kxg4 {[%clk 0:00:04]} 65. Kd5 {[%clk 0:00:14]}  Kg5 {[%clk 0:00:04]} 66. e5 {[%clk 0:00:14]}  Kg6 {[%clk 0:00:04]} 67. Ke6 {[%clk 0:00:14]}  Kg7 {[%clk 0:00:05]} 68. Rf2 {[%clk 0:00:14]}  Re3 {[%clk 0:00:04]} 69. Kd6 {[%clk 0:00:14]}  Ra3 {[%clk 0:00:04]} 70. e6 {[%clk 0:00:12]}  Ra6+ {[%clk 0:00:04]} 71. Kd7 {[%clk 0:00:13]}  Ra7+ {[%clk 0:00:05]} 72. Kc8 {[%clk 0:00:13]}  Ra8+ {[%clk 0:00:06]} 73. Kb7 {[%clk 0:00:12]}  Re8 {[%clk 0:00:06]} 74. Re2 {[%clk 0:00:13]}  Kf6 {[%clk 0:00:06]} 75. Kc7 {[%clk 0:00:13]}  Rxe6 {[%clk 0:00:07]} 76. Rxe6+ {[%clk 0:00:13]}  Kxe6 {[%clk 0:00:08]} 1/2-1/2


[Site "https://www.chess.com"]

[Event "Titled Tuesday Blitz April 25 Late 2023"]
[White "Chernobay, Artem"]
[Black "Baskakov, Egor"]
[WhiteFideId "4167406"]
[BlackFideId "24197866"]
[WhiteElo "2474"]
[BlackElo "2212"]
[Result "0-1"]
[Round "05"]
[TimeControl "180+2"]
[Date "2023.04.25"]
[WhiteClock "0:00:17"]
[BlackClock "0:00:46"]

1. e4 {[%clk 0:02:59]}  c5 {[%clk 0:03:00]} 2. Nf3 {[%clk 0:02:58]}  Nf6 {[%clk 0:02:57]} 3. e5 {[%clk 0:02:57]}  Nd5 {[%clk 0:02:55]} 4. Ng5 {[%clk 0:02:57]}  e6 {[%clk 0:02:45]} 5. d4 {[%clk 0:02:57]}  cxd4 {[%clk 0:02:45]} 6. Qf3 {[%clk 0:02:57]}  f6 {[%clk 0:02:45]} 7. Bd3 {[%clk 0:02:57]}  g6 {[%clk 0:02:44]} 8. exf6 {[%clk 0:02:55]}  Qxf6 {[%clk 0:02:43]} 9. Qg3 {[%clk 0:02:56]}  Nc6 {[%clk 0:02:42]} 10. O-O {[%clk 0:02:49]}  Bg7 {[%clk 0:02:33]} 11. Na3 {[%clk 0:02:40]}  O-O {[%clk 0:02:30]} 12. Nc4 {[%clk 0:02:35]}  e5 {[%clk 0:02:25]} 13. Ne4 {[%clk 0:02:30]}  Qe7 {[%clk 0:02:19]} 14. Bg5 {[%clk 0:02:23]}  Nf6 {[%clk 0:02:17]} 15. Ncd6 {[%clk 0:02:21]}  Nxe4 {[%clk 0:02:15]} 16. Nxe4 {[%clk 0:02:12]}  Qe6 {[%clk 0:02:08]} 17. Nc5 {[%clk 0:01:15]}  Qd5 {[%clk 0:01:58]} 18. Ne4 {[%clk 0:01:06]}  d6 {[%clk 0:01:56]} 19. Qh4 {[%clk 0:00:58]}  Bf5 {[%clk 0:01:42]} 20. Rae1 {[%clk 0:00:49]}  Nb4 {[%clk 0:01:35]} 21. Be7 {[%clk 0:00:25]}  Nxd3 {[%clk 0:01:25]} 22. cxd3 {[%clk 0:00:25]}  Rf7 {[%clk 0:01:10]} 23. Nxd6 {[%clk 0:00:23]}  Bxd3 {[%clk 0:01:07]} 24. Nxf7 {[%clk 0:00:22]}  Qxf7 {[%clk 0:01:08]} 25. Bd6 {[%clk 0:00:20]}  Bxf1 {[%clk 0:01:07]} 26. Kxf1 {[%clk 0:00:19]}  Qxa2 {[%clk 0:00:48]} 27. Rc1 {[%clk 0:00:17]}  Qa6+ {[%clk 0:00:46]} 0-1


[Site "https://www.chess.com"]

[Event "Titled Tuesday Blitz April 25 Late 2023"]
[White "Rozen, Eytan"]
[Black "Ehlvest, Jaan"]
[WhiteFideId "2816750"]
[BlackFideId "4500016"]
[WhiteElo "2451"]
[BlackElo "2442"]
[Result "1-0"]
[Round "05"]
[TimeControl "180+2"]
[Date "2023.04.25"]
[WhiteClock "0:00:09"]
[BlackClock "0:00:01"]

1. e4 {[%clk 0:03:00]}  c5 {[%clk 0:02:59]} 2. Nf3 {[%clk 0:03:00]}  Nc6 {[%clk 0:02:59]} 3. Nc3 {[%clk 0:02:58]}  g6 {[%clk 0:02:58]} 4. Bb5 {[%clk 0:02:55]}  Bg7 {[%clk 0:02:57]} 5. d3 {[%clk 0:02:52]}  Nd4 {[%clk 0:02:53]} 6. Bc4 {[%clk 0:02:50]}  e6 {[%clk 0:02:16]} 7. Nxd4 {[%clk 0:02:44]}  cxd4 {[%clk 0:02:15]} 8. Nb5 {[%clk 0:02:44]}  d6 {[%clk 0:02:12]} 9. Bf4 {[%clk 0:02:36]}  e5 {[%clk 0:02:11]} 10. Bg3 {[%clk 0:02:12]}  a6 {[%clk 0:02:09]} 11. Na3 {[%clk 0:02:12]}  Nf6 {[%clk 0:02:01]} 12. O-O {[%clk 0:02:08]}  b5 {[%clk 0:01:52]} 13. Bb3 {[%clk 0:02:08]}  Nh5 {[%clk 0:01:44]} 14. Bd5 {[%clk 0:02:05]}  Ra7 {[%clk 0:01:40]} 15. c4 {[%clk 0:02:01]}  dxc3 {[%clk 0:01:19]} 16. bxc3 {[%clk 0:02:02]}  O-O {[%clk 0:01:18]} 17. c4 {[%clk 0:01:59]}  b4 {[%clk 0:01:11]} 18. Nc2 {[%clk 0:01:58]}  a5 {[%clk 0:01:11]} 19. Ne3 {[%clk 0:01:52]}  Bh6 {[%clk 0:01:07]} 20. a3 {[%clk 0:01:49]}  Qb6 {[%clk 0:00:44]} 21. axb4 {[%clk 0:01:41]}  Qxb4 {[%clk 0:00:37]} 22. d4 {[%clk 0:01:15]}  Nxg3 {[%clk 0:00:27]} 23. hxg3 {[%clk 0:01:15]}  exd4 {[%clk 0:00:25]} 24. Qxd4 {[%clk 0:01:15]}  Qc5 {[%clk 0:00:21]} 25. Qxc5 {[%clk 0:01:07]}  dxc5 {[%clk 0:00:21]} 26. f4 {[%clk 0:01:01]}  a4 {[%clk 0:00:15]} 27. Rfb1 {[%clk 0:00:57]}  Bd7 {[%clk 0:00:13]} 28. e5 {[%clk 0:00:56]}  g5 {[%clk 0:00:10]} 29. f5 {[%clk 0:00:51]}  g4 {[%clk 0:00:07]} 30. Nxg4 {[%clk 0:00:49]}  Bg5 {[%clk 0:00:07]} 31. e6 {[%clk 0:00:49]}  Be8 {[%clk 0:00:03]} 32. Rb8 {[%clk 0:00:44]}  Kg7 {[%clk 0:00:02]} 33. Ne5 {[%clk 0:00:18]}  fxe6 {[%clk 0:00:02]} 34. fxe6 {[%clk 0:00:16]}  Bf6 {[%clk 0:00:02]} 35. Re1 {[%clk 0:00:16]}  a3 {[%clk 0:00:02]} 36. Rbb1 {[%clk 0:00:12]}  a2 {[%clk 0:00:02]} 37. Ra1 {[%clk 0:00:13]}  Bh5 {[%clk 0:00:01]} 38. g4 {[%clk 0:00:12]}  Bg6 {[%clk 0:00:01]} 39. g5 {[%clk 0:00:09]} 1-0


[Site "https://www.chess.com"]